bitfinex/quotes_ETHUSD_20250626
["timestamp","ask_amount","ask_price","bid_price","bid_amount"]
[1750967371230,0.2048,2440.3,2439.8,0.2048]
[1750967371427,0.2048,2440.3,2439.9,0.7924]
[1750967371633,0.2048,2440.4,2440.0,0.2048]
[1750967372782,3.52839754,2440.7,2440.1,0.798]
[1750967372783,0.97689754,2440.7,2440.1,0.798]
[1750967372942,0.2048,2440.6,2440.2,0.2048]
[1750967377291,0.2048,2440.6,2440.3,0.8035]
[1750967380285,0.2048,2440.6,2440.2,0.2048]
[1750967380905,0.2048,2440.6,2440.2,0.48052]
[1750967382270,0.2048,2440.6,2440.2,0.2048]
[1750967383858,5.12176831,2440.6,2440.2,0.2048]
[1750967384085,1.0244,2440.6,2440.2,0.2048]
[1750967384264,0.2048,2440.4,2440.1,0.8024]
[1750967384686,0.2048,2440.4,2440.0,0.2048]
[1750967386994,6.9098,2440.4,2440.0,0.2048]
[1750967387218,0.7787,2440.2,2439.7,0.7844]
[1750967387412,0.2048,2440.1,2439.7,0.7844]
[1750967397028,0.9557,2440.1,2439.7,0.7844]
[1750967397318,0.9557,2440.1,2439.6,0.2048]
[1750967398904,1.93669448,2440.1,2439.6,0.2048]
[1750967399100,4.10774082,2440.1,2439.6,0.2048]
[1750967399300,3.12674634,2440.1,2439.6,0.2048]
[1750967400294,8.4618665,2439.9,2439.6,0.2048]
[1750967400495,0.7914,2439.7,2439.0,0.002]
[1750967400737,11.09638983,2439.8,2439.0,0.002]
[1750967400738,4.0998729,2439.1,2439.0,0.002]
[1750967401027,14.94589767,2439.1,2439.0,0.002]
[1750967401325,4.650041,2439.0,2438.9,0.002]
[1750967401494,13.90347561,2438.9,2438.8,0.002]
[1750967401695,22.14560911,2438.9,2438.8,0.002]
[1750967402029,22.69139329,2438.9,2438.8,0.002]
[1750967402248,10.80420911,2438.9,2438.8,0.002]
[1750967402456,33.37419893,2438.9,2438.8,0.002]
[1750967403352,14.10020911,2438.9,2438.8,0.002]
[1750967403655,35.91799893,2438.9,2438.8,0.002]
[1750967405213,15.44500911,2438.9,2438.8,0.002]
[1750967405448,25.5475271,2438.9,2438.8,0.002]
[1750967405624,17.0915271,2438.9,2438.8,0.002]
[1750967405831,25.5475271,2438.9,2438.8,0.002]
[1750967407227,11.64651799,2438.9,2438.8,0.002]
[1750967407426,6.713,2439.0,2438.8,0.002]
[1750967408466,6.716,2438.9,2438.8,0.002]
[1750967408969,6.715,2438.9,2438.8,0.7967]
[1750967410749,6.9198,2439.1,2438.8,0.7967]
[1750967411988,0.97727849,2439.3,2438.8,0.7967]
[1750967412133,0.8226,2439.5,2438.8,0.7967]
[1750967412134,6.9188,2439.2,2438.8,0.7967]
[1750967414972,0.2048,2439.2,2438.8,0.7967]
[1750967415176,6.9138,2439.4,2438.9,0.2048]
[1750967417338,7.87,2439.7,2439.0,2.5046]
[1750967417540,0.2048,2439.8,2439.4,0.8002]
[1750967428451,8.84985139,2439.9,2439.4,0.8002]
[1750967428668,7.871,2439.9,2439.7,0.2048]
[1750967428977,0.001,2439.9,2439.8,0.8266]
[1750967430952,0.001,2439.9,2439.8,1.0314]
[1750967431645,0.001,2439.9,2439.8,13.13965951]
[1750967433871,0.001,2439.9,2439.8,59.78585836]
[1750967434770,0.001,2440.9,2440.2,4.90222475]
[1750967435096,0.2167226,2442.5,2441.6,4.09555594]
[1750967435410,0.2167226,2442.5,2442.4,0.204]
[1750967435759,0.2167226,2442.5,2441.3,10.0]
[1750967435976,0.2167226,2442.5,2441.5,0.8003]
[1750967436463,0.2167226,2442.5,2441.2,10.0]
[1750967436464,0.2167226,2442.5,2441.7,10.7711]
[1750967436698,0.2167226,2442.5,2441.8,11.76171]
[1750967437006,0.2167226,2442.5,2441.9,10.7711]
[1750967437178,0.2167226,2442.5,2441.9,0.7711]
[1750967437497,0.2167226,2442.5,2442.4,0.7778]
[1750967439600,0.2167226,2442.5,2442.1,0.7778]
[1750967439813,0.2167226,2442.5,2440.9,6.4815167]
[1750967439814,0.2167226,2442.5,2441.2,10.31368983]
[1750967440026,0.2167226,2442.5,2441.3,3.00891921]
[1750967440185,4.09450108,2442.3,2441.3,0.7778]
[1750967440517,0.8174,2442.4,2441.3,0.7778]
[1750967440518,1.821,2442.2,2441.3,0.7778]
[1750967440716,0.55,2442.1,2441.3,0.7778]
[1750967441218,4.09507818,2442.0,2441.3,0.7778]
[1750967441616,4.64490106,2442.1,2441.3,0.7778]
[1750967441915,0.64659011,2442.0,2441.3,0.7778]
[1750967442382,4.09520472,2441.9,2441.2,0.30800927]
[1750967442583,4.6449495,2442.1,2441.0,0.7664]
[1750967442797,4.09501525,2442.0,2441.0,0.7664]
[1750967443000,0.55,2442.1,2441.0,0.7664]
[1750967443001,0.7507,2441.8,2441.0,0.7664]
[1750967443200,1.82,2441.7,2441.0,0.7664]
[1750967443407,1.82,2441.7,2441.1,1.07664]
[1750967444002,5.91552032,2441.7,2441.1,1.07664]
[1750967444219,1.82,2441.7,2441.0,0.7664]
[1750967445082,1.82,2441.7,2441.0,1.07489473]
[1750967445914,0.204,2441.6,2441.1,0.2048]
[1750967447521,2.0367226,2442.5,2441.3,10.7856]
[1750967447695,2.0367226,2442.5,2441.4,11.76856]
[1750967448101,4.31089904,2442.5,2441.4,11.76856]
[1750967448292,1.82,2442.4,2441.4,11.76856]
[1750967448487,4.09466141,2442.3,2441.4,11.76856]
[1750967449008,0.7624,2442.3,2441.3,0.7856]
[1750967449216,4.09526745,2441.9,2441.3,0.7856]
[1750967449535,0.7624,2441.7,2441.0,0.30849473]
[1750967449890,0.7624,2441.7,2440.9,0.7856]
[1750967450686,0.7624,2441.7,2440.9,1.09489639]
[1750967451434,18.91250224,2442.1,2440.9,1.09489639]
[1750967451435,4.88000181,2442.1,2441.0,11.8]
[1750967451633,0.7851,2442.1,2441.1,12.10678964]
[1750967451798,0.2167226,2442.5,2441.4,0.8173]
[1750967451995,2.0367226,2442.5,2441.4,0.8173]
[1750967452197,4.09447002,2442.4,2441.4,0.8173]
[1750967452391,7.87,2442.4,2441.4,0.8173]
[1750967452591,2.88801281,2442.4,2441.5,1.08173]
[1750967452895,8.80236393,2442.4,2441.5,1.08173]
[1750967455539,2.88801281,2442.4,2441.5,1.08173]
[1750967455838,8.0867226,2442.5,2441.6,0.774]
[1750967456842,12.18095835,2442.5,2441.6,0.774]
[1750967457042,8.0867226,2442.5,2441.6,0.774]
[1750967457342,4.09443019,2442.4,2441.6,0.774]
[1750967457520,0.204,2442.2,2441.8,0.204]
[1750967458562,4.09508943,2442.0,2441.6,0.774]
[1750967458754,0.204,2441.9,2441.6,0.774]
[1750967458941,4.29918627,2441.9,2441.4,0.204]
[1750967459751,4.29918627,2441.9,2441.0,0.768]
[1750967459752,1.3713,2441.8,2441.0,0.768]
[1750967459917,1.82,2441.7,2441.0,0.768]
[1750967460122,4.09576491,2441.6,2441.0,0.768]
[1750967460630,4.09596654,2441.5,2441.0,0.768]
[1750967460835,4.09603507,2441.4,2441.0,0.768]
[1750967461004,4.09592616,2441.5,2441.0,0.768]
[1750967461360,1.00116534,2441.5,2440.8,0.768]
[1750967461518,4.64607032,2441.4,2440.8,0.768]
[1750967461707,4.09625919,2441.3,2440.8,0.768]
[1750967461908,4.09619999,2441.3,2440.8,0.768]
[1750967462554,4.64607312,2441.4,2440.8,0.768]
[1750967462848,4.09618748,2441.3,2440.8,0.768]
[1750967463442,4.09594197,2441.5,2440.8,0.768]
[1750967463641,1.82,2441.3,2440.8,0.768]
[1750967463953,1.82,2441.4,2440.8,0.768]
[1750967464140,4.09558977,2441.7,2440.8,0.768]
[1750967464350,5.91558977,2441.7,2440.8,0.768]
[1750967464543,4.09570404,2441.6,2440.8,0.768]
[1750967465021,4.09570404,2441.6,2440.8,1.06851343]
[1750967465547,5.91558977,2441.7,2440.8,1.06851343]
[1750967465548,4.09585014,2441.5,2440.8,1.06851343]
[1750967465923,4.09574168,2441.6,2440.8,1.06851343]
[1750967466149,4.09577229,2441.6,2440.8,1.06851343]
[1750967466448,4.09557226,2441.7,2440.8,1.06851343]
[1750967466647,11.857,2441.8,2440.9,0.8257]
[1750967466951,4.09555136,2441.7,2440.9,0.8257]
[1750967467255,4.09551807,2441.7,2440.9,0.8257]
[1750967467418,2.79177939,2441.7,2440.9,0.8257]
[1750967467617,4.09576388,2441.6,2440.9,0.8257]
[1750967468565,6.88735761,2441.7,2440.9,0.8257]
[1750967468752,4.09557822,2441.7,2440.9,0.8257]
[1750967468920,4.09567868,2441.6,2440.9,0.8257]
[1750967469543,4.09591113,2441.5,2440.9,0.8257]
[1750967469834,4.29994149,2441.5,2441.0,0.2048]
[1750967470344,0.83957088,2441.5,2440.9,0.8257]
[1750967470559,0.83957088,2441.5,2440.8,0.30078381]
[1750967470560,0.2048,2441.1,2440.8,0.30078381]
[1750967470756,0.2048,2441.1,2440.7,0.9912]
[1750967470757,4.30139436,2441.1,2440.7,0.9912]
[1750967470965,0.2048,2441.1,2440.7,0.9912]
[1750967471168,4.30133129,2441.1,2440.7,0.9912]
[1750967471739,0.2048,2441.1,2440.7,0.9912]
[1750967471953,0.2048,2441.0,2440.7,0.7864]
[1750967475287,4.30163681,2441.0,2440.7,0.7864]
[1750967475580,4.30152604,2441.0,2440.6,0.31262031]
[1750967475777,4.30152604,2441.0,2440.5,0.997]
[1750967475940,4.09719684,2440.7,2440.2,0.7922]
[1750967476279,4.09719684,2440.7,2440.3,0.2048]
[1750967476639,4.09719684,2440.7,2440.1,0.002]
[1750967476640,2.6771,2440.7,2440.1,0.002]
[1750967476862,0.2048,2440.3,2440.1,0.002]
[1750967477072,4.30266771,2440.3,2440.1,0.002]
[1750967477384,4.09802475,2440.2,2440.1,0.002]
[1750967478102,4.91712475,2440.2,2440.1,0.002]
[1750967479958,6.77512475,2440.2,2440.1,0.002]
[1750967480380,9.35800387,2440.2,2440.1,0.002]
[1750967482051,9.90800387,2440.2,2440.1,0.002]
[1750967482278,17.77800387,2440.2,2440.1,0.002]
[1750967484917,27.77800387,2440.2,2440.1,0.002]
[1750967485079,27.74090387,2440.2,2440.1,0.002]
[1750967487715,7.868,2439.9,2439.8,0.002]
[1750967487919,14.87970482,2439.2,2439.1,0.002]
[1750967488076,32.02170482,2439.2,2439.1,0.002]
[1750967490437,8.0728,2439.2,2439.1,0.7783]
[1750967491629,7.868,2439.2,2439.1,0.7783]
[1750967493211,7.868,2439.2,2439.1,0.9831]
[1750967494530,7.868,2440.2,2439.2,0.8321]
[1750967494739,7.868,2440.2,2439.4,0.8321]
[1750967494740,14.736,2440.2,2439.4,0.8321]
[1750967495032,6.868,2440.2,2439.4,0.8321]
[1750967495230,6.871,2440.4,2439.4,0.8321]
[1750967495601,4.09803711,2440.2,2439.4,0.8321]
[1750967495833,4.09803711,2440.2,2439.4,2.6911]
[1750967496002,10.96879672,2440.4,2439.4,2.6911]
[1750967496003,4.09790522,2440.3,2439.5,0.26911]
[1750967496629,6.871,2440.4,2439.5,0.26911]
[1750967496630,10.9687409,2440.4,2439.5,0.26911]
[1750967496913,10.9687409,2440.4,2439.6,0.8267]
[1750967496914,6.871,2440.4,2439.6,0.8267]
[1750967497249,1.859,2440.5,2439.6,0.8267]
[1750967497533,6.871,2440.4,2439.6,0.8267]
[1750967497830,10.96870004,2440.4,2439.6,0.8267]
[1750967498234,4.0978754,2440.3,2439.6,1.122181]
[1750967498593,4.09785682,2440.3,2439.6,1.122181]
[1750967499212,12.66132143,2440.4,2439.6,0.8267]
[1750967499738,4.09786519,2440.3,2439.6,0.8267]
[1750967500600,12.6612827,2440.4,2439.6,0.8267]
[1750967500821,8.56351204,2440.4,2439.6,0.8267]
[1750967501006,8.56351204,2440.4,2439.7,0.26677]
[1750967501229,7.868,2440.3,2439.7,0.26677]
[1750967501389,7.868,2440.3,2439.8,0.813]
[1750967504104,11.96600054,2440.3,2439.8,1.12345777]
[1750967504306,11.96590803,2440.3,2439.8,0.813]
[1750967504533,0.2048,2440.0,2439.6,0.8152]
[1750967504851,4.09839964,2440.0,2439.6,0.8152]
[1750967505140,0.2048,2439.9,2439.4,1.0274]
[1750967505436,0.2048,2439.5,2439.4,0.8226]
[1750967506433,0.2048,2439.5,2439.2,0.7968]
[1750967507038,0.2048,2439.7,2439.4,0.7968]
[1750967510403,7.868,2439.8,2439.6,0.2048]
[1750967511003,7.0628,2440.1,2439.6,0.2048]
[1750967511404,10.0,2440.3,2439.7,0.7889]
[1750967511630,10.0,2440.3,2439.8,0.2048]
[1750967511631,0.2048,2440.2,2439.8,0.2048]
[1750967511826,2.69758,2440.2,2439.8,0.2048]
[1750967513104,6.79571218,2440.2,2439.8,0.2048]
[1750967513932,4.09848312,2440.0,2439.2,2.6562]
[1750967514107,4.87629269,2440.1,2439.5,0.2048]
[1750967514108,4.30336181,2439.9,2439.5,0.2048]
[1750967514308,0.2048,2439.9,2439.5,0.2048]
[1750967514867,4.30339653,2439.9,2439.5,0.2048]
[1750967515217,11.96670939,2439.8,2439.5,0.2048]
[1750967515418,4.09894187,2439.7,2439.2,0.8152]
[1750967515611,0.2048,2439.6,2439.2,0.8152]
[1750967518047,8.6694,2440.4,2439.5,10.0]
[1750967518249,8.6694,2440.4,2439.8,0.2048]
[1750967518250,0.2048,2440.2,2439.8,0.2048]
[1750967520808,0.2048,2440.2,2439.8,1.61751257]
[1750967521037,8.0728,2440.4,2440.0,0.2048]
[1750967524320,7.868,2440.4,2439.9,0.7941]
[1750967524567,0.2048,2440.2,2439.9,0.7941]
[1750967527626,7.868,2440.4,2439.9,0.7941]
[1750967527827,8.0728,2440.4,2440.0,0.2048]
[1750967529158,0.001,2440.8,2440.1,0.7614]
[1750967529460,0.2048,2440.7,2440.3,0.2048]
[1750967530256,0.2048,2440.7,2440.4,0.7614]
[1750967530434,0.001,2440.8,2440.7,0.7614]
[1750967534480,0.001,2440.8,2440.7,1.03952]
[1750967536383,0.001,2440.8,2440.7,0.7614]
[1750967544777,0.2058,2440.8,2440.3,12.0188]
[1750967545486,4.30289592,2440.8,2440.3,0.2048]
[1750967545668,0.2058,2440.8,2440.3,0.2048]
[1750967546068,4.30283223,2440.8,2440.3,0.2048]
[1750967546274,1.12349983,2440.8,2440.3,0.2048]
[1750967546474,5.22052215,2440.8,2440.3,0.2048]
[1750967546989,1.12349983,2440.8,2440.3,0.2048]
[1750967547391,0.2058,2440.8,2440.4,0.8046]
[1750967550080,0.2058,2440.8,2440.3,0.2048]
[1750967551087,0.8106,2440.7,2440.3,0.2048]
[1750967553462,0.2058,2440.8,2440.3,0.2048]
[1750967553877,0.2058,2440.8,2440.0,0.8304]
[1750967553878,4.09740163,2440.6,2440.0,0.8304]
[1750967554085,5.98902838,2440.6,2440.1,0.2048]
[1750967554386,1.89162675,2440.6,2440.1,0.2048]
[1750967554766,5.98904358,2440.6,2440.1,0.2048]
[1750967554966,4.09759299,2440.5,2439.9,10.0]
[1750967555275,0.2048,2440.3,2439.9,10.0]
[1750967556473,1.0096,2440.3,2439.9,10.0]
[1750967556690,1.0096,2440.3,2439.9,13.13574553]
[1750967557613,1.0096,2440.3,2439.8,10.51636257]
[1750967557891,5.10750476,2440.3,2439.8,10.51636257]
[1750967558193,4.09877928,2439.8,2439.4,1.19859276]
[1750967558368,0.2048,2439.8,2439.4,1.19859276]
[1750967558576,0.2048,2439.8,2439.3,1.40339276]
[1750967559088,4.30351448,2439.8,2439.3,1.40339276]
[1750967559300,0.2048,2439.8,2439.3,1.40339276]
[1750967559598,0.2048,2439.8,2439.3,0.2048]
[1750967561576,4.30349802,2439.8,2439.3,0.2048]
[1750967561776,0.2048,2439.8,2439.3,0.2048]
[1750967562597,4.30350707,2439.8,2439.3,0.2048]
[1750967562896,5.2267051,2439.8,2439.3,0.2048]
[1750967563103,1.12799803,2439.8,2439.3,0.2048]
[1750967563268,0.2048,2439.8,2439.3,0.2048]
[1750967563660,0.8228,2439.6,2439.1,0.002]
[1750967563864,0.2048,2439.4,2439.1,0.002]
[1750967567273,0.2048,2439.4,2439.2,0.7771]
[1750967567474,0.8228,2439.6,2439.2,0.9819]
[1750967567475,1.0276,2439.6,2439.2,0.9819]
[1750967568972,0.2048,2439.6,2439.2,0.9819]
[1750967570003,0.2048,2439.6,2439.2,9.44814431]
[1750967570176,0.7895,2440.2,2439.6,0.755]
[1750967570376,0.2048,2440.0,2439.6,0.755]
[1750967571434,0.7895,2440.4,2439.6,0.755]
[1750967571607,0.2048,2440.2,2439.7,0.2048]
[1750967571777,0.2048,2440.2,2439.7,1.14740443]
[1750967572608,0.2048,2440.2,2439.7,0.2048]
[1750967577794,4.09862093,2439.9,2439.3,0.7755]
[1750967578013,0.8112,2440.1,2439.3,0.9803]
[1750967578014,0.2048,2439.8,2439.3,0.9803]
[1750967579730,0.55,2440.3,2439.3,0.7755]
[1750967580023,0.2048,2439.9,2439.5,0.2048]
[1750967580223,0.8298,2440.3,2439.6,0.7912]
[1750967580432,0.2048,2440.2,2439.7,0.2048]
[1750967584930,7.868,2440.4,2439.3,10.0]
[1750967584931,7.868,2440.4,2439.8,0.7766]
[1750967585130,8.0728,2440.4,2439.9,0.2048]
[1750967585992,8.0728,2440.4,2439.9,0.51284369]
[1750967586197,8.0728,2440.4,2440.0,0.8116]
[1750967586928,1.794,2440.7,2440.0,0.8116]
[1750967587134,1.9988,2440.7,2440.3,0.2048]
[1750967587336,0.2048,2440.7,2440.4,0.7939]
[1750967587537,0.001,2440.8,2440.4,0.7939]
[1750967587736,0.001,2440.8,2440.6,0.2048]
[1750967589442,0.001,2440.8,2440.4,2.5789]
[1750967589640,0.001,2440.8,2440.4,2.7837]
[1750967590001,0.001,2440.8,2440.4,4.06207]
[1750967591053,0.001,2440.8,2440.7,0.2048]
[1750967598125,0.001,2440.8,2440.7,9.44097551]
[1750967599343,0.001,2440.8,2440.7,0.9851]
[1750967599949,0.001,2440.8,2440.7,0.2048]
[1750967605428,0.001,2440.8,2440.5,2.5643]
[1750967605429,0.001,2440.8,2440.3,10.833]
[1750967605634,0.001,2440.8,2440.4,1.9888]
[1750967607967,0.7842,2440.8,2440.4,0.2048]
[1750967609535,0.001,2440.8,2440.4,0.2048]
[1750967609733,0.001,2440.8,2440.6,9.26657551]
[1750967609935,0.001,2440.8,2440.7,1.13145755]
[1750967610730,0.001,2440.8,2440.7,7.88845755]
[1750967613397,0.001,2440.8,2440.7,8.71255755]
[1750967617593,0.001,2440.8,2440.7,1.13145755]
[1750967617885,0.001,2440.8,2440.7,8.7448]
[1750967620696,0.001,2440.8,2440.7,0.2048]
[1750967620901,0.001,2440.8,2440.7,8.53]
[1750967622407,0.001,2440.8,2440.5,1.20533136]
[1750967622609,0.7933,2440.7,2440.3,1.20533136]
[1750967622890,0.9981,2440.5,2440.1,1.774]
[1750967623489,0.9981,2440.5,2440.1,8.53]
[1750967623880,0.9981,2440.5,2440.0,0.2048]
[1750967624081,0.9981,2440.5,2440.0,8.4361282]
[1750967625071,0.9981,2440.5,2440.0,1.6801282]
[1750967625285,0.9981,2440.5,2440.0,8.4361282]
[1750967629709,4.0976972,2440.4,2440.0,0.2048]
[1750967629912,0.2048,2440.2,2440.0,6.756]
[1750967634601,8.6736,2440.7,2440.1,9.28237551]
[1750967634802,0.001,2440.8,2440.4,8.45587551]
[1750967635007,0.001,2440.8,2440.7,8.45587551]
[1750967635216,0.001,2440.8,2440.7,15.41667551]
[1750967638521,0.001,2440.8,2440.7,26.23007551]
[1750967640715,0.001,2440.8,2440.7,36.83658751]
[1750967640926,0.001,2440.8,2440.7,38.72820275]
[1750967641220,0.001,2440.8,2440.7,36.29987275]
[1750967641589,0.001,2440.8,2440.7,33.61777275]
[1750967641790,0.001,2440.8,2440.7,30.24339975]
[1750967641996,0.001,2440.8,2440.7,23.48739975]
[1750967642202,0.001,2440.8,2440.7,10.2048]
[1750967642403,0.001,2440.8,2440.7,16.9598]
[1750967642830,0.8204,2440.8,2440.7,18.529]
[1750967643190,0.8204,2440.8,2440.6,0.2048]
[1750967643395,0.8204,2440.8,2440.7,6.755]
[1750967643587,0.001,2440.8,2440.7,23.70360623]
[1750967643793,0.001,2440.8,2440.7,22.58874476]
[1750967643992,0.001,2440.8,2440.7,22.00460623]
[1750967644695,0.001,2440.8,2440.7,23.50360623]
[1750967644906,0.001,2440.8,2440.7,23.29460623]
[1750967645192,0.001,2440.8,2440.7,25.73127623]
[1750967645623,0.001,2440.8,2440.7,25.29727623]
[1750967645792,0.001,2440.8,2440.7,24.89737623]
[1750967646120,0.001,2440.8,2440.7,13.77827623]
[1750967646309,0.001,2440.8,2440.7,22.31027623]
[1750967646927,0.001,2440.8,2440.7,21.52627623]
[1750967647634,0.001,2440.8,2440.7,20.5368]
[1750967649035,0.001,2440.8,2440.7,12.0048]
[1750967649212,0.001,2440.8,2440.7,1.8]
[1750967649528,0.001,2440.8,2440.6,6.9608]
[1750967650333,0.001,2440.8,2440.6,16.756]
[1750967650533,0.001,2440.8,2440.7,2.72598755]
[1750967653817,0.001,2440.8,2440.3,0.795]
[1750967653818,0.7837,2440.7,2440.5,1.9788]
[1750967654021,0.7837,2440.7,2440.6,6.755]
[1750967655110,0.7837,2440.7,2440.5,1.9788]
[1750967655307,0.7837,2440.7,2440.0,3.37862064]
[1750967655512,0.9885,2440.4,2440.1,6.763]
[1750967656746,0.7837,2440.4,2439.8,1.90965756]
[1750967656945,0.2048,2440.3,2440.0,6.763]
[1750967657152,0.9554,2440.3,2440.0,6.763]
[1750967657349,0.7506,2440.2,2439.9,6.762]
[1750967659318,0.7506,2440.2,2439.8,0.50983692]
[1750967659518,0.7506,2440.2,2439.9,6.759]
[1750967659726,4.84871138,2440.2,2439.8,0.2048]
[1750967659931,0.2048,2440.0,2439.5,3.58442064]
[1750967660130,0.2048,2440.0,2439.5,1.9798]
[1750967660131,0.8159,2439.9,2439.5,1.9798]
[1750967660337,0.8159,2439.9,2439.6,6.759]
[1750967660850,1.32779788,2439.9,2439.5,0.2048]
[1750967661051,0.2048,2440.0,2439.2,1.60462064]
[1750967661052,1.0207,2439.5,2439.2,1.60462064]
[1750967661350,1.0207,2439.5,2439.1,1.60662064]
[1750967661538,0.2048,2439.3,2439.1,1.60662064]
[1750967663666,0.2048,2439.3,2439.1,0.002]
[1750967665672,0.7917,2439.2,2439.1,0.002]
[1750967665986,1.30130863,2439.2,2439.1,0.002]
[1750967666967,5.40101345,2439.2,2439.1,0.002]
[1750967667170,5.96921345,2439.2,2439.1,0.002]
[1750967671986,15.96921345,2439.2,2439.1,0.002]
[1750967675165,23.83721345,2439.2,2439.1,0.002]
[1750967675363,8.6779,2439.2,2439.1,0.002]
[1750967675534,7.868,2439.2,2439.1,0.002]
[1750967677196,0.7606,2439.4,2439.1,0.002]
[1750967677396,0.2048,2439.3,2439.1,0.002]
[1750967678296,7.868,2439.6,2439.1,0.002]
[1750967678463,0.2048,2439.5,2439.1,0.002]
[1750967679094,0.2048,2439.5,2439.2,0.8244]
[1750967679309,7.868,2439.6,2439.3,0.2048]
[1750967679896,0.7581,2440.2,2439.4,10.0]
[1750967680098,0.2048,2440.2,2439.6,0.8244]
[1750967680311,16.403,2440.7,2440.0,0.8244]
[1750967680312,7.868,2440.7,2440.0,0.8244]
[1750967680595,0.2048,2440.5,2440.1,0.2048]
[1750967681682,0.2048,2440.3,2440.0,2.5994]
[1750967681885,0.2048,2440.3,2440.0,2.87982]
[1750967682483,0.2048,2440.3,2440.0,1.775]
[1750967682791,4.09910007,2439.6,2439.1,0.002]
[1750967683114,0.7597,2439.5,2439.1,0.002]
[1750967683969,4.09957022,2439.3,2439.1,0.002]
[1750967684308,4.09970482,2439.2,2439.1,0.002]
[1750967685696,5.43540482,2439.2,2439.1,0.002]
[1750967687301,12.21740482,2439.2,2439.1,0.002]
[1750967688718,11.66740482,2439.2,2439.1,0.002]
[1750967690216,12.21740482,2439.2,2439.1,0.002]
[1750967690419,24.0751902,2439.2,2439.1,0.002]
[1750967691724,25.8471902,2439.2,2439.1,0.002]
[1750967694500,8.1117,2439.2,2439.1,0.002]
[1750967694708,6.776,2439.2,2439.1,0.002]
[1750967696103,10.0,2439.3,2439.1,0.002]
[1750967696300,0.2048,2439.2,2439.1,0.002]
[1750967698032,6.775,2439.4,2439.2,0.8068]
[1750967698220,0.2048,2439.3,2439.2,0.8068]
[1750967698419,0.2048,2439.3,2439.1,0.002]
[1750967700409,0.2048,2439.3,2438.8,0.002]
[1750967700410,15.40430911,2438.9,2438.8,0.002]
[1750967700722,15.40481352,2438.6,2438.5,0.002]
[1750967700909,23.97181352,2438.6,2438.5,0.002]
[1750967701540,16.32048188,2438.6,2438.5,0.002]
[1750967701778,23.11348188,2438.6,2438.5,0.002]
[1750967701951,26.01238715,2438.6,2438.5,0.002]
[1750967704689,22.98667363,2438.6,2438.5,0.002]
[1750967704842,14.8648,2438.6,2438.5,0.002]
[1750967705535,19.51551352,2438.6,2438.5,0.002]
[1750967706466,15.4148,2438.6,2438.5,0.002]
[1750967706665,19.51551352,2438.6,2438.5,0.002]
[1750967706854,22.05471282,2438.6,2438.5,0.002]
[1750967708367,17.9539993,2438.6,2438.5,0.002]
[1750967708542,14.8648,2438.6,2438.5,0.002]
[1750967709383,8.0728,2438.6,2438.5,0.002]
[1750967709544,14.8578,2438.6,2438.5,0.002]
[1750967710143,14.8578,2438.6,2438.5,0.8015]
[1750967711238,14.8578,2438.6,2438.5,0.002]
[1750967711461,8.0728,2438.6,2438.5,0.8015]
[1750967711649,8.0728,2438.6,2438.5,0.002]
[1750967713987,15.42153859,2438.6,2438.5,0.002]
[1750967716675,9.4253,2438.6,2438.5,0.002]
[1750967716901,13.52601352,2438.6,2438.5,0.002]
[1750967719300,23.52601352,2438.6,2438.5,0.002]
[1750967719507,24.44413114,2438.6,2438.5,0.002]
[1750967724696,33.01513114,2438.6,2438.5,0.002]
[1750967724896,36.7267017,2438.6,2438.5,0.002]
[1750967726143,28.1557017,2438.6,2438.5,0.002]
[1750967726350,8.99091762,2438.6,2438.5,0.002]
[1750967726636,14.8488,2438.6,2438.5,0.002]
[1750967727250,8.0728,2438.6,2438.5,0.002]
[1750967728544,8.9922729,2438.6,2438.5,0.002]
[1750967728844,8.0728,2438.6,2438.5,0.002]
[1750967729367,8.99295387,2438.6,2438.5,0.002]
[1750967730461,16.04676278,2438.6,2438.5,0.002]
[1750967731432,26.04676278,2438.6,2438.5,0.002]
[1750967731648,34.61876278,2438.6,2438.5,0.002]
[1750967736972,38.93176278,2438.6,2438.5,0.002]
[1750967737148,14.65121806,2438.3,2438.2,0.002]
[1750967737469,32.95836167,2438.3,2438.2,0.002]
[1750967739341,34.74736167,2438.3,2438.2,0.002]
[1750967739870,34.75210738,2438.3,2438.2,0.002]
[1750967743057,26.18410738,2438.3,2438.2,0.002]
[1750967743371,28.85488932,2438.3,2438.2,0.002]
[1750967743583,8.78889958,2438.3,2438.2,0.002]
[1750967743875,14.633,2438.3,2438.2,0.002]
[1750967744170,15.55789958,2438.3,2438.2,0.002]
[1750967744750,15.56089958,2438.3,2438.2,0.002]
[1750967744952,15.56103341,2438.3,2438.2,0.002]
[1750967745657,8.78903341,2438.3,2438.2,0.7755]
[1750967745864,14.8398,2438.3,2438.2,0.7755]
[1750967746064,15.76483341,2438.3,2438.2,0.7755]
[1750967746274,8.99383341,2438.3,2438.2,0.7755]
[1750967746471,14.8398,2438.3,2438.2,0.7755]
[1750967746686,15.76483341,2438.3,2438.2,0.7755]
[1750967746857,14.8388,2438.3,2438.2,0.7755]
[1750967747575,14.8378,2438.3,2438.2,0.7755]
[1750967758408,14.8378,2438.3,2438.2,0.002]
[1750967760312,21.38290369,2438.3,2438.2,0.002]
[1750967762502,22.16330369,2438.3,2438.2,0.002]
[1750967762695,33.08645632,2438.3,2438.2,0.002]
[1750967765785,25.76745632,2438.3,2438.2,0.002]